Cogmind - Beta 13 @@@ ROGUE MODE // 2024.04.11 @ 03:00:34 Player: Patryk Z Result: Destroyed by GL-D5Z(R) with Subdweller Machine Gun Performance ------------- Evolutions (0) 0 Regions Visited (3) 600 Robots Destroyed (19) 95 Value Destroyed (557) 557 Prototype IDs (10) 200 Alien Tech Used (0) 0 Bonus (-152) -152 TOTAL SCORE: 1300 Bonus ------- Friendly Fire -152 Cogmind --------- Core Integrity 0/250 Matter 59/300 Energy 157/180 System Corruption 0% Temperature Cool (0) Movement Rolling (120) Ox1 Location -10/Subcaves Parts ------- > --- POWER (1) -------- Meta Core > --- PROPULSION (2) --- Subdweller Monowheel Subdweller Monowheel > --- UTILITY (2+1) ---- High-capacity Storage Unit Structural Scanner (+) Signal Interpreter > --- WEAPON (2+1) ----- Subdweller Laser Assault Rifle Makeshift Axe (+) > --- INVENTORY (20) --- Ion Engine Ion Engine Ion Engine Subdweller Power Source Subdweller Power Source Subdweller Power Source Wheel Wheel Wheel Wheel Subdweller Optics Sensor Array Seismic Detector Datajack Mining Laser Welding Torch Peak State ------------ > --- POWER ------------ Meta Core > --- PROPULSION ------- Subdweller Monowheel Subdweller Monowheel > --- UTILITY ---------- High-capacity Storage Unit Structural Scanner Signal Interpreter > --- WEAPON ----------- Assault Rifle Subdweller Machine Gun Makeshift Axe > --- INVENTORY -------- Ion Engine Ion Engine Ion Engine Subdweller Power Source Subdweller Power Source Subdweller Power Source Wheel Wheel Wheel Wheel Subdweller Optics Sensor Array Seismic Detector Subdweller Laser Datajack Mining Laser Welding Torch [Rating: 29] Favorites ----------- Power Ion Engine Engine Ion Engine Power Core Meta Core Propulsion Wheel Wheel Wheel Utility High-capacity Storage Unit Device Sensor Array Storage High-capacity Storage Unit Processor Signal Interpreter Weapon Small Laser Energy Gun Small Laser Ballistic Gun Assault Rifle Launcher Grenade Launcher Special Weapon Mining Laser Slashing Weapon Makeshift Axe Build | -11 -10 -10 -10 ------- Run | Yrd Mat Min Sub Slots Evolved . | . . . . Power . | . . . . Propulsion . | . . . . Utility . | . . . . Weapon . | . . . . Parts Attached 67 | 8 21 10 28 Power 5 | 1 . . 4 Engine 4 | 1 . . 3 Core 1 | . . . 1 Reactor . | . . . . Propulsion 16 | 2 . . 14 Treads . | . . . . Leg . | . . . . Wheel 16 | 2 . . 14 Hover . | . . . . Flight . | . . . . Utility 19 | 2 10 5 2 Device 15 | 1 9 4 1 Storage 2 | 1 1 . . Processor 2 | . . 1 1 Hackware . | . . . . Protection . | . . . . Artifact . | . . . . Weapon 27 | 3 11 5 8 Energy Gun 7 | 2 3 . 2 Energy Cannon . | . . . . Ballistic Gun 8 | 1 2 2 3 Ballistic Cannon . | . . . . Launcher 4 | . . 2 2 Special Weapon 7 | . 6 1 . Impact Weapon . | . . . . Slashing Weapon 1 | . . . 1 Piercing Weapon . | . . . . Special Melee Weapon . | . . . . Unidentified Prototypes . | . . . . Parts Lost 9 | . . . 9 Power 1 | . . . 1 Propulsion 3 | . . . 3 Utility . | . . . . Weapon 5 | . . . 5 Highest Loss Streak 3 | . . . 3 To Critical Strikes . | . . . . Average Slot Usage (%) 98 | . 100 100 97 Engine 11 | . 14 14 8 Core 2 | . . . 4 Wheel 26 | . 28 28 25 Device 10 | . 14 14 6 Storage 13 | . 14 14 12 Processor 5 | . . . 10 Energy Gun 10 | . 14 14 7 Ballistic Gun 3 | . 1 6 4 Launcher 5 | . . 1 10 Special Weapon 5 | . 12 7 . Slashing Weapon 3 | . . . 5 Naked Turns . | . . . . Heaviest Build 53 | 13 50 51 53 Greatest Support 50 | 20 20 20 50 Greatest Overweight (x) 2 | . 2 2 2 Average Overweight (x) 1 | . 1 2 1 Largest Inventory Capacity 20 | 8 20 20 20 Average Capacity 18 | 7 19 20 20 Most Carried 20 | 5 20 19 20 Average Carried 16 | 2 15 18 18 Final Capacity 20 | 8 20 20 20 Final Carried 18 | 5 18 18 16 Class Distribution -------------------- 91% | Mutant 8% | Scavenger-Mutant Dominant Class ---------------- Mutant | -10/Materials Mutant | -10/Mines Mutant | -10/Subcaves Resources | -11 -10 -10 -10 ----------- Run | Yrd Mat Min Sub Matter Collected 844 | 280 153 46 365 Remotely . | . . . . Salvage Created 521 | 136 . 22 363 Parts 45 | 11 2 5 27 Haulers Intercepted . | . . . . Recyclers Shooed 1 | . 1 . . Parts Field Recycled . | . . . . Retrieved Matter . | . . . . Parts Self-Destructed 10 | . . . 10 Prevented . | . . . . Kills | -11 -10 -10 -10 ------- Run | Yrd Mat Min Sub Combat Hostiles Destroyed 14 | . . 3 11 Melee 2 | . . . 2 Guns 2 | . . . 2 AOE 10 | . . 3 7 Classes Destroyed 7 | 2 1 1 3 Builder 1 | . 1 . . Tunneler 3 | 3 . . . Recycler 1 | 1 . . . Swarmer 3 | . . 3 . Sentry 1 | . . . 1 Artisan 1 | . . . 1 Subdweller 10 | . . . 10 Best Kill Streak 5 | 2 1 3 5 Combat Bots Only 5 | . . 3 5 Max Kills in Single Turn 2 | 1 1 2 2 Gunslinging . | . . . . Exploded 2 | . . 2 2 Melee 1 | . . . 1 Uniques/NPCs Destroyed . | . . . . Combat | -11 -10 -10 -10 -------- Run | Yrd Mat Min Sub Hostile Shots Fired 64 | . . 5 59 Missed 18 | . . 3 15 Damage Taken 1197 | . 37 39 1121 Core 272 | . . . 272 Absorbed by Shields . | . . . . Core Remaining (%) 100 | 100 . . . Volleys Fired 66 | 11 17 8 30 Largest 2 | 2 2 2 2 Hottest 120 | 80 120 100 80 Shots Fired 98 | 22 20 10 46 Gun 53 | 22 2 2 27 Cannon . | . . . . Launcher 21 | . . 2 19 Special 24 | . 18 6 . Kinetic 22 | . 1 . 21 Thermal 55 | 22 19 8 6 Explosive 21 | . . 2 19 Electromagnetic . | . . . . Robot Hit Streak 22 | 7 3 1 22 Robot Miss Streak 3 | 1 2 3 1 Penetration Max . | . . . . Secondary Targets . | . . . . Shots Hit Robots 65 | 14 2 2 47 Core Hits 36 | 5 2 3 26 Critical Kills . | . . . . Critical Parts Destroyed . | . . . . Critical Strikes . | . . . . Melee Attacks 25 | . . . 25 Impact . | . . . . Slashing 25 | . . . 25 Piercing . | . . . . Sneak Attacks 2 | . . . 2 Combat Hostiles . | . . . . Follow-up Attacks . | . . . . Damage Inflicted 1899 | 170 27 176 1526 Guns 446 | 170 . . 276 Cannons . | . . . . Explosions 998 | . . 176 822 Melee 428 | . . . 428 Ramming . | . . . . Kinetic 216 | . . . 216 Thermal 257 | 170 27 . 60 Explosive 998 | . . 176 822 Electromagnetic . | . . . . Impact . | . . . . Slashing 428 | . . . 428 Piercing . | . . . . Highest Corruption . | . . . . Average Corruption . | . . . . Corruption Purged . | . . . . Corruption Blocked . | . . . . Overload Shots . | . . . . Overflow Damage 43 | . . 15 28 Projectiles . | . . . . Explosions 17 | . . 15 2 Melee 26 | . . . 26 Knockbacks . | . . . . Impact . | . . . . Kinetic . | . . . . Secondary . | . . . . Self-Inflicted Damage 155 | . 37 21 97 Shots 7 | . 1 2 4 Rammed . | . . . . Targets Rammed . | . . . . Kicked . | . . . . Crushed . | . . . . Highest Temperature 231 | 92 40 60 231 Average Temperature 28 | 33 15 25 127 Received Heat Transfer 437 | . . . 437 Siege Activations . | . . . . Robots Corrupted . | . . . . Combat Hostiles . | . . . . Parts Fried . | . . . . Impact Corruptions . | . . . . Robots Melted . | . . . . Combat Hostiles . | . . . . Parts Melted . | . . . . Heat Transferred 586 | 375 75 . 136 Parts Sabotaged . | . . . . Parts Stolen . | . . . . Parts Stripped . | . . . . Power Chain Reactions . | . . . . Alert | -11 -10 -10 -10 ------- Run | Yrd Mat Min Sub Peak Influence 160 | 20 79 160 . Initial 13 | . 13 4 . Average 49 | 8 35 155 . Maximum Alert Level . | . . . . Low Security (%) 100 | 100 100 100 . Level 1 . | . . . . Level 2 . | . . . . Level 3 . | . . . . Level 4 . | . . . . Level 5 . | . . . . High Security . | . . . . Max Security . | . . . . Squads Dispatched 1 | . 1 . . Investigation 1 | . 1 . . Extermination . | . . . . Reinforcement . | . . . . Assault . | . . . . Garrison . | . . . . Intercept . | . . . . Searches Triggered . | . . . . Construction Impeded . | . . . . Haulers Reinforced . | . . . . Active Scanning Responses . | . . . . Cargo Convoy Interrupts . | . . . . Stealth | -11 -10 -10 -10 --------- Run | Yrd Mat Min Sub Distress Signals 1 | . 1 . . Communications Jammed . | . . . . Distress Signals . | . . . . Times Spotted 21 | . . 3 18 Peak Tracking Total 4 | . 1 3 4 Tactical Retreats 1 | . . . 1 Traps | -11 -10 -10 -10 ------- Run | Yrd Mat Min Sub Traps Triggered 1 | . . . 1 Indirectly . | . . . . Trap Hack Attempts . | . . . . Triggered . | . . . . Disarmed . | . . . . Reprogrammed . | . . . . Reused . | . . . . Traps Extracted . | . . . . Installed . | . . . . Triggered 1 | . . . 1 Machines | -11 -10 -10 -10 ---------- Run | Yrd Mat Min Sub Machines Disabled 6 | . 1 4 1 Max in Single Turn 2 | . 1 2 1 Machines Repaired . | . . . . Machines Dismantled . | . . . . Machines Sabotaged . | . . . . Overloaded Fab Kills . | . . . . Hacking | -11 -10 -10 -10 --------- Run | Yrd Mat Min Sub Machines Accessed 5 | . 4 . 1 Terminals 3 | . 3 . . Fabricators . | . . . . Repair Stations . | . . . . Recycling Units 1 | . 1 . . Scanalyzers . | . . . . Garrison Access . | . . . . Total Hacks 20 | . 11 . 9 Successful 13 | . 4 . 9 Failed 7 | . 7 . . Catastrophic 2 | . 2 . . Database Lockouts . | . . . . Manual 7 | . 7 . . Terminals 8 | . 8 . . Fabricators . | . . . . Repair Stations . | . . . . Recycling Units 3 | . 3 . . Scanalyzers . | . . . . Garrison Access . | . . . . Terminal Hacks 9 | . . . 9 Record 8 | . . . 8 Derelict Proto ID Bank 1 | . . . 1 Fabricator Hacks . | . . . . Repair Station Hacks . | . . . . Recycling Unit Hacks 2 | . 2 . . Report Inventory 1 | . 1 . . Retrieve Components 1 | . 1 . . Scanalyzer . | . . . . Garrison Access Hacks . | . . . . Unauthorized Hacks 2 | . 2 . . Terminals 2 | . 2 . . Botnet 2 | . 2 . . Fabricators . | . . . . Repair Stations . | . . . . Recycling Units . | . . . . Scanalyzers . | . . . . Garrison Access . | . . . . Data Cores Recovered . | . . . . Used . | . . . . Hacking Detections 3 | . 3 . . Full Trace Events 2 | . 2 . . Feedback Events . | . . . . Feedback Blocked . | . . . . Robot Schematics Acquired . | . . . . Robots Built . | . . . . Authchips . | . . . . Time . | . . . . Total Robot Build Rating . | . . . . Part Schematics Acquired . | . . . . Parts Built . | . . . . Authchips . | . . . . Time . | . . . . Total Part Build Rating . | . . . . Parts Repaired . | . . . . Time . | . . . . Parts Recycled . | . . . . Recycled Matter . | . . . . Retrieved Matter . | . . . . Retrieved Components 9 | . 9 . . Parts Scanalyzed . | . . . . Part Schematics Acquired . | . . . . Parts Damaged . | . . . . Bothacking | -11 -10 -10 -10 ------------ Run | Yrd Mat Min Sub Used RIF Installer . | . . . . Robots Hacked . | . . . . Non-combat . | . . . . Combat . | . . . . Robot Hacks Applied . | . . . . Relay Couplers Released . | . . . . Fabnet Peak Effective % . | . . . . Robots Rewired . | . . . . Allies Hacked . | . . . . Hacks Repelled . | . . . . Allies | -11 -10 -10 -10 -------- Run | Yrd Mat Min Sub Total Allies . | . . . . Largest Group . | . . . . Highest-Rated Group . | . . . . Highest-Rated Ally . | . . . . Total Orders . | . . . . Ally Attacks . | . . . . Total Damage . | . . . . Kills . | . . . . Allies Corrupted . | . . . . Allies Melted . | . . . . Intel | -11 -10 -10 -10 ------- Run | Yrd Mat Min Sub Robot Analysis Total . | . . . . Derelict Logs Recovered 1 | . . . 1 Drone Launches . | . . . . Drone Recoveries . | . . . . Exploration | -11 -10 -10 -10 ------------- Run | Yrd Mat Min Sub Turns Passed 1845 | 139 655 140 911 Spaces Moved 1131 | 103 359 53 616 Core 5 | 5 . . . Treads . | . . . . Legs . | . . . . Wheels 1126 | 98 359 53 616 Hover . | . . . . Flight . | . . . . Fastest Speed 50 | 50 80 110 107 Average Speed 110 | 78 109 110 116 Slowest Speed 130 | 80 110 110 130 Overloaded Moves . | . . . . Propulsion Burnouts . | . . . . Robots Hopped . | . . . . Cave-ins Triggered . | . . . . Exploration Rate (%) 34 | 5 60 18 53 Regions Visited 3 Branch Regions 2 Pre-discovered Areas 1 | . . . 1 Known Exits Taken 1 | . . 1 . Unknown Exits Taken 2 | 1 1 . . Scrap Searched 2 | . . 1 1 Spaces Dug 15 | . 11 3 1 Terrain Destroyed 179 | . 43 29 107 Melee 1 | . . . 1 Projectile 14 | . 11 3 . AOE 164 | . 32 26 106 Terrain Rammed . | . . . . Walls Destroyed . | . . . . Machines Disabled . | . . . . Actions | -11 -10 -10 -10 --------- Run | Yrd Mat Min Sub Total 1550 | 134 566 110 740 Wait 213 | 8 145 37 23 Move 1128 | 102 358 52 616 Hop . | . . . . Pick Up 31 | 5 18 . 8 Fast Attach 13 | 7 . 1 5 Attach 14 | . . 2 12 Detach 3 | . . 2 1 Swap 40 | 1 21 7 11 Drop 15 | . 5 1 9 Fire 66 | 11 17 8 30 Melee 25 | . . . 25 Ram . | . . . . Kick . | . . . . Crush . | . . . . Escape Stasis . | . . . . Rewire 2 | . 2 . . Trap . | . . . . Miscellaneous . | . . . . Route ------- -11/Scrapyard -10/Materials (discovered 3 exits: [*Mat x2] / [*Min]) -10/Mines (discovered 2 exits: [*Mat] / *Sub) -10/Subcaves (discovered 1 exit: *Mat) History --------- Turn | Location | Event 12 | -11/Scrapyard | Discovered new exit (range 16) 140 | -11/Scrapyard | Entered Materials 311 | -10/Materials | Build established: Mutant 404 | -10/Materials | Discovered new exit (range 8) 576 | -10/Materials | Discovered new exit (range 14) 763 | -10/Materials | Discovered new exit (range 13) 795 | -10/Materials | Entered Mines 868 | -10/Mines | Discovered new exit (range 10) 912 | -10/Mines | Discovered new exit (range 4) 932 | -10/Mines | Identified exit to Subcaves 935 | -10/Mines | Entered Subcaves 1079 | -10/Subcaves | Discovered new exit (range 14) 1095 | -10/Subcaves | Identified exit to Materials 1214 | -10/Subcaves | Ambushed by Subdweller buried in earth 1369 | -10/Subcaves | Shifting Twisted Machinery released Mak. Axe 1387 | -10/Subcaves | Shifting Twisted Machinery released Sub. Beam Cannon 1454 | -10/Subcaves | Visited 4L-MR0's lab 1499 | -10/Subcaves | Found Meta Core 1500 | -10/Subcaves | Attached Meta Core, gained temporary slots: Propulsion, Utility, Weapon 1565 | -10/Subcaves | Shifting Twisted Machinery released Shrapnel Trap 1619 | -10/Subcaves | Core integrity fell below 50% 1645 | -10/Subcaves | Core integrity fell below 20% 1669 | -10/Subcaves | Lost 3 parts (1n2w) 1677 | -10/Subcaves | Learned location of Storage (-8) 1717 | -10/Subcaves | A swath of the cavern ceiling suddenly collapsed 1846 | -10/Subcaves | Destroyed by GL-D5Z(R) with Subdweller Machine Gun Last Messages --------------- 01660_ The unstable cave ceiling collapses. 01677_ Acquired derelict log, extracted data. World map updated: -8/Storage. 01711_ 78-X12(u) tweaks Twisted Machinery. 01717_ 78-X12(u) crushed by falling debris. 01717_ 78-X12(u) cries out in pain. 01717_ 78-X12(u) destroyed. 01717_ Multitool crushed. A swath of the cavern ceiling suddenly collapses. 01736_ WM-ZZJ(R): "WEHOME!" 01751_ Sub. Monowheel destroyed. 01753_ WM-ZZJ(R) destroyed. 01758_ Acquired Sub. Monowheel. 01760_ Acquired 35 matter. 01762_ Dropped Ion Engine. 01762_ Acquired Sub. Power Source. 01765_ Acquired Ion Engine. 01767_ Acquired Sub. Machine Gun. 01828_ Lgt. Assault Rifle destroyed. 01844_ Sub. Machine Gun destroyed. Map ----- +----------------------------------------------------+ | ?????????????????????????????????????????????????? | | ?????????????????????????????????????????????????? | | ?????????????????????????????????????????????????? | | ???????####????????????????????#########?????????? | | ???????#########???######????##################### | | ???????## ######???###############"#"############# | | ???????## ####### ############""""#"### # | | ??????### ######## #""####""" """ " # | | ?????#### ###### "## " #"" #""###"##### # | | ?????### ### ###""""" "###"####"# | | ?????## ## # #""""" ####"####### | | ?????## """##;########?### ###### | | ?????### ";;###"???### ####### | | ?????### ### # ## ;#####??### ###?## | | ??????## ######### ####??## ??### | | ??????## ########## ###???? ??### | | ??????## ######## ##### ?? | | ??????####### ######### #### ## ## | | ??????######## ### ##### #### ###### | | ???????????### ## #### ##### ###### | | ???????????### #### ######### ##???## | | ???????????## ### ######## ###??# | | ???????????## ## R #### ## ##??? | | ???????????### R ##???? | | ???????????#### ##????? # | | ????????????#### @## # ##? ##?????## | | ?????????????###### ## ## ##??????????? | | ??????????????###### ##### ?????????????? | | ?????????????????########## ? ??????????? | | ??????????????????#######????? ?????????? | | ?????????????????????????????? ???????? | | ??????????????????????????????? ####???????? | | ??????????????????????????????? #####???????? | | ??????????????????????????????? ###?????????? | | ???????????????????????????????### #?????????? | | ???????????????????????????????#### ##?????????? | | ?????????????????????????????????### #?????????? | | ??????????????????????????????????# ????????????? | | ?????????????????????????????????????????????????? | | ?????????????????????????????????????????????????? | | ?????????????????????????????????????????????????? | | ?????????????????????????????????????????????????? | | ?????????????????????????????????????????????????? | | ?????????????????????????????????????????????????? | | ?????????????????????????????????????????????????? | | ?????????????????????????????????????????????????? | | ?????????????????????????????????????????????????? | | ?????????????????????????????????????????????????? | | ?????????????????????????????????????????????????? | | ?????????????????????????????????????????????????? | +----------------------------------------------------+ Best States ------------- Heat Dissipation 25 Energy Generation 17 Energy Capacity 250 Matter Stores 300 Matter Capacity 300 Sight Range 16 Robot Scan Range 14 Terrain Scan Density 10 Evasion (%) 44 Item Schematics ----------------- None Robot Schematics ------------------ None Fabricated ------------ Nothing Alien Tech Used ----------------- None Achievements -------------- None Challenges ------------ None Game ------ Seed SniperSiegeChainsword Manual? 0 Play Time 00:58:25 Cumulative 36.4 hours Start 2024.04.11 @ 00:38:50 End 2024.04.11 @ 03:00:34 Sessions 1 Manual Loads 0 Difficulty Rogue Special Mode None Game No. 22 Rogue 22 Adventurer 0 Explorer 0 Win Type - Total 1 Types 1/0/0/0/0/0/0/0/0 Lore% 23 Gallery% 26 Achievement% 28 Wizard Run 0 Options --------- Layout 0 ASCII 0 Keyboard 0 Movement Numpad Keybinds 0 Fullscreen 2 Font 18/SmallcapsGlow Map View 76x50 Zoom Use 0% Tactical HUD 1 Map Filters NONE Filters NONE Steam 1 RUN: 6a9016ec-0f2e-463c-bbcb-d6885b302c3b